[Event "27th CRO-chT 1B-Men 2018"]
[Site "Biograd"]
[Date "2018.09.17"]
[Round "3.16"]
[White "Martic, Zlatko"]
[Black "Stocko, Josip"]
[Result "1/2-1/2"]
[ECO "E11"]
[WhiteElo "2244"]
[BlackElo "2322"]
[Annotator "ChessBase"]
[PlyCount "61"]
[EventDate "2018.09.15"]
[EventType "team-tourn"]
[EventCountry "CRO"]
[SourceTitle "playchess.com"]
[Source "ChessBase"]
[SourceQuality "1"]
[TimeControl "40/5400+30:1800+30"]

1. d4 {[%emt 0:02:30]} Nf6 {[%emt 0:00:30]} 2. c4 {[%emt 0:00:30]} e6 {[%emt 0:00:00]} 3. Nf3 {[%emt 0:00:30]} Bb4+ {[%emt 0:00:00]} 4. Nbd2 {[%emt 0:00:30]} O-O {[%emt 0:00:30]} 5. a3 {[%emt 0:00:30]} Be7 {[%emt 0:00:30]} 6. e4 {[%emt 0:00:30]} d6 {[%emt 0:00:30]} 7. Be2 {[%emt 0:00:30]} Nbd7 {[%emt 0:01:30]} 8. Qc2 {[%emt 0:01:30]} e5 {[%emt 0:02:30]} 9. b4 {[%emt 0:09:30]} a5 {[%emt 0:07:30]} 10. Bb2 {[%emt 0:05:30]} axb4 {[%emt 0:00:30]} 11. axb4 {[%emt 0:00:00]} Rxa1+ {[%emt 0:00:30]} 12. Bxa1 {[%emt 0:00:00]} Re8 {[%emt 0:07:30]} 13. d5 {[%emt 0:01:30]} c5 {[%emt 0:01:30]} 14. b5 {[%emt 0:08:30]} g6 {[%emt 0:07:30]} 15. O-O {[%emt 0:01:30]} Nh5 {[%emt 0:05:30]} 16. g3 {[%emt 0:00:30]} Ng7 {[%emt 0:00:30]} 17. Ne1 {[%emt 0:08:30]} f5 {[%emt 0:03:30]} 18. Bd3 {[%emt 0:09:30]} f4 {[%emt 0:01:30]} 19. f3 {[%emt 0:02:30]} g5 {[%emt 0:02:30]} 20. g4 {[%emt 0:01:30]} Kf7 {[%emt 0:01:30]} 21. h3 {[%emt 0:06:30]} h5 {[%emt 0:00:30]} 22. Rf2 {[%emt 0:03:30]} Rh8 {[%emt 0:00:00]} 23. Nf1 {[%emt 0:04:30]} Nf6 {[%emt 0:03:00]} 24. Be2 {[%emt 0:04:30]} hxg4 {[%emt 0:01:30]} 25. hxg4 {[%emt 0:00:30]} Rh4 {[%emt 0:01:30]} 26. Rh2 {[%emt 0:01:30]} Qh8 {[%emt 0:01:30]} 27. Ng2 {[%emt 0:05:30]} Rxh2 {[%emt 0:06:30]} 28. Nxh2 {[%emt 0:00:00]} Nd7 {[%emt 0:03:30]} 29. Qa2 {[%emt 0:01:00]} Bd8 {[%emt 0:03:30]} 30. Bc3 {[%emt 0:00:30]} Bb6 {[%emt 0:07:30]} 31. Qa8 {[%emt 0:01:30]} 1/2-1/2

[Event "27th CRO-chT 1B-Men 2018"]
[Site "Biograd"]
[Date "2018.09.18"]
[Round "4.3"]
[White "Krstic, Uros"]
[Black "Mufic, Goran"]
[Result "1/2-1/2"]
[ECO "B21"]
[WhiteElo "2364"]
[BlackElo "2254"]
[Annotator "NA"]
[PlyCount "25"]
[EventDate "2018.09.15"]
[EventType "team-tourn"]
[EventCountry "CRO"]
[SourceTitle "playchess.com"]
[Source "ChessBase"]
[SourceQuality "1"]
[TimeControl "40/5400+30:1800+30"]

{[%evp 11,22,-3,32767,-3,14,6,-2,-4,35,0,30,19,29]} 1. e4 {[%emt 0:03:30]} c5 {[%emt 0:00:30]} 2. Be2 {[%emt 0:00:30]} Nc6 {[%emt 0:00:30]} 3. f4 {[%emt 0:00:30]} g6 {[%emt 0:01:30]} 4. Nf3 {[%emt 0:00:30]} Bg7 {[%emt 0:00:00]} 5. O-O {[%emt 0:00:00]} e6 {[%emt 0:01:00]} 6. c3 {[%emt 0:06:00]} d5 {[%emt 0:06:30]} 7. d3 {[%emt 0:09:30]} Nge7 {[%emt 0:01:30]} 8. Qe1 {[%emt 0:09:30]} b6 {[%emt 0:00:30]} 9. Na3 {[%emt 0:04:30]} Ba6 {[%emt 0:00:30] LiveBook: 3 Games} 10. Rb1 {[%emt 0:00:30]} dxe4 {[%emt 0:08:30]} 11. dxe4 {[%emt 0:00:30]} Bd3 $11 {[%emt 0:00:30]} 12. Bxd3 {[%emt 0:05:30]} Qxd3 {[%emt 0:00:30]} 13. Ng5 {[%emt 0:11:30]} 1/2-1/2

[Event "27th CRO-chT 1B-Men 2018"]
[Site "Biograd"]
[Date "2018.09.18"]
[Round "4.4"]
[White "Doric, Nenad"]
[Black "Vernacki, Srdjan"]
[Result "1/2-1/2"]
[ECO "B43"]
[WhiteElo "2249"]
[BlackElo "2357"]
[Annotator "ChessBase"]
[PlyCount "100"]
[EventDate "2018.09.15"]
[EventType "team-tourn"]
[EventCountry "CRO"]
[SourceTitle "playchess.com"]
[Source "ChessBase"]
[SourceQuality "1"]
[TimeControl "40/5400+30:1800+30"]

1. e4 {[%emt 0:01:30]} c5 {[%emt 0:00:30]} 2. Nf3 {[%emt 0:00:30]} e6 {[%emt 0:00:00]} 3. d4 {[%emt 0:00:30]} cxd4 {[%emt 0:00:00]} 4. Nxd4 {[%emt 0:00:30]} a6 {[%emt 0:00:00]} 5. Nc3 {[%emt 0:00:30]} b5 {[%emt 0:01:00]} 6. Bd3 {[%emt 0:00:30]} Bb7 {[%emt 0:00:30]} 7. O-O {[%emt 0:00:30]} b4 {[%emt 0:01:30]} 8. Na4 {[%emt 0:05:30]} Nf6 {[%emt 0:01:30]} 9. Re1 {[%emt 0:00:30]} Nc6 {[%emt 0:06:30]} 10. Nf3 {[%emt 0:12:30]} d6 {[%emt 0:05:30]} 11. c3 {[%emt 0:04:30]} Be7 {[%emt 0:03:30]} 12. Bf4 {[%emt 0:04:30]} O-O {[%emt 0:02:30]} 13. Rc1 {[%emt 0:03:30]} a5 {[%emt 0:16:30]} 14. c4 {[%emt 0:04:30] ad} Nd7 {[%emt 0:04:30]} 15. Bb1 {[%emt 0:01:30]} e5 {[%emt 0:04:30]} 16. Be3 {[%emt 0:02:30]} Qc7 {[%emt 0:10:30]} 17. c5 {[%emt 0:09:30]} dxc5 {[%emt 0:00:30]} 18. Nxc5 {[%emt 0:00:30]} Nxc5 {[%emt 0:00:30]} 19. Bxc5 {[%emt 0:00:00]} Bxc5 {[%emt 0:00:00]} 20. Rxc5 {[%emt 0:00:00]} Qb6 {[%emt 0:03:00]} 21. Qc1 {[%emt 0:07:30]} Rac8 {[%emt 0:00:30]} 22. Qe3 {[%emt 0:00:30]} f6 {[%emt 0:03:30]} 23. Rec1 {[%emt 0:02:30]} Nd4 {[%emt 0:03:30]} 24. Rxc8 {[%emt 0:00:30]} Rxc8 {[%emt 0:00:30]} 25. Rxc8+ {[%emt 0:01:30]} Bxc8 {[%emt 0:00:30]} 26. Bc2 {[%emt 0:07:30]} Be6 {[%emt 0:02:30]} 27. Bb3 {[%emt 0:03:30]} Bxb3 {[%emt 0:00:30]} 28. axb3 {[%emt 0:00:00]} Qc5 {[%emt 0:02:30]} 29. h3 {[%emt 0:07:00]} Qc2 {[%emt 0:01:30]} 30. Nxd4 {[%emt 0:00:47]} Qd1+ {[%emt 0:00:30]} 31. Kh2 {[%emt 0:00:13]} exd4 {[%emt 0:00:30]} 32. Qg3 {[%emt 0:00:31]} h6 {[%emt 0:02:30]} 33. e5 {[%emt 0:04:30]} fxe5 {[%emt 0:00:30]} 34. Qxe5 {[%emt 0:00:08]} Qxb3 {[%emt 0:01:30]} 35. Qe8+ {[%emt 0:01:16]} Kh7 {[%emt 0:00:30]} 36. Qe4+ {[%emt 0:00:13]} Kh8 {[%emt 0:00:30]} 37. Qa8+ {[%emt 0:09:54]} Qg8 {[%emt 0:02:30]} 38. Qxa5 {[%emt 0:00:03]} d3 {[%emt 0:07:35]} 39. Qxb4 {[%emt 0:01:08]} Qd5 {[%emt 0:00:19]} 40. Qd2 {[%emt 0:00:00]} Qe5+ {[%emt 0:00:00]} 41. g3 {[%emt 0:07:17]} Qe2 {[%emt 0:03:06]} 42. Qf4 {[%emt 0:00:30]} Kg8 {[%emt 0:00:30]} 43. Qc4+ {[%emt 0:01:30]} Kh8 {[%emt 0:15:30]} 44. Kg2 {[%emt 0:02:30]} Qd1 {[%emt 0:08:32]} 45. Qc8+ {[%emt 0:01:30]} Kh7 {[%emt 0:00:06]} 46. Qf5+ {[%emt 0:00:30]} Kg8 {[%emt 0:00:22]} 47. Qd5+ {[%emt 0:01:30]} Kh8 {[%emt 0:00:33]} 48. Qa8+ {[%emt 0:00:30]} Kh7 {[%emt 0:00:08]} 49. Qf3 {[%emt 0:03:30]} Qc2 {[%emt 0:00:19]} 50. Qe4+ {[%emt 0:00:30]} Kg8 {[%emt 0:01:34]} 1/2-1/2

[Event "27th CRO-chT 1B-Men 2018"]
[Site "Biograd"]
[Date "2018.09.18"]
[Round "4.6"]
[White "Safar, Sandro"]
[Black "Tomasic, Roland"]
[Result "1/2-1/2"]
[ECO "B23"]
[WhiteElo "2214"]
[BlackElo "2166"]
[Annotator "ChessBase"]
[PlyCount "145"]
[EventDate "2018.09.15"]
[EventType "team-tourn"]
[EventCountry "CRO"]
[SourceTitle "playchess.com"]
[Source "ChessBase"]
[SourceQuality "1"]
[TimeControl "40/5400+30:1800+30"]

1. e4 {[%emt 0:00:30]} c5 {[%emt 0:01:30]} 2. Nc3 {[%emt 0:00:00]} Nc6 {[%emt 0:00:00]} 3. f4 {[%emt 0:00:00]} g6 {[%emt 0:01:00]} 4. Nf3 {[%emt 0:00:30]} Bg7 {[%emt 0:00:30]} 5. Bc4 {[%emt 0:01:30]} e6 {[%emt 0:00:00]} 6. f5 {[%emt 0:02:30]} Nge7 {[%emt 0:03:00]} 7. fxe6 {[%emt 0:00:30]} dxe6 {[%emt 0:00:00]} 8. d3 {[%emt 0:01:30]} O-O {[%emt 0:01:00]} 9. O-O {[%emt 0:03:30]} Nd4 {[%emt 0:02:30]} 10. Nxd4 {[%emt 0:01:30]} cxd4 {[%emt 0:03:30]} 11. Ne2 {[%emt 0:02:30]} Nc6 {[%emt 0:00:30]} 12. Qe1 {[%emt 0:02:30]} Na5 {[%emt 0:25:30]} 13. Bb5 {[%emt 0:06:30]} a6 {[%emt 0:04:30]} 14. Ba4 {[%emt 0:00:30]} b5 {[%emt 0:00:30]} 15. Bd2 {[%emt 0:00:30]} Nb7 {[%emt 0:01:30]} 16. Bb3 {[%emt 0:00:30]} Nc5 {[%emt 0:04:30]} 17. Bb4 {[%emt 0:15:30]} Qc7 {[%emt 0:02:30]} 18. Qf2 {[%emt 0:21:30]} Nxb3 {[%emt 0:10:30]} 19. axb3 {[%emt 0:07:30]} Re8 {[%emt 0:05:30]} 20. Nxd4 {[%emt 0:03:30]} Bb7 {[%emt 0:03:30]} 21. Bc3 {[%emt 0:03:30]} e5 {[%emt 0:05:30]} 22. Nf3 {[%emt 0:01:30]} a5 {[%emt 0:01:30]} 23. Ne1 {[%emt 0:09:32]} Rf8 {[%emt 0:01:30]} 24. b4 {[%emt 0:01:33]} a4 {[%emt 0:00:30]} 25. Qc5 {[%emt 0:00:25]} Qxc5+ {[%emt 0:01:30]} 26. bxc5 {[%emt 0:00:04]} Rfc8 {[%emt 0:00:30]} 27. Bb4 {[%emt 0:06:06]} Bf8 {[%emt 0:04:51]} 28. c3 {[%emt 0:00:12]} Bxc5+ {[%emt 0:00:23]} 29. Bxc5 {[%emt 0:00:04]} Rxc5 {[%emt 0:00:05]} 30. Nc2 {[%emt 0:00:10]} Rd8 {[%emt 0:02:07]} 31. Nb4 {[%emt 0:02:16]} Kg7 {[%emt 0:00:27]} 32. Rf2 {[%emt 0:02:58]} f6 {[%emt 0:01:17]} 33. Kf1 {[%emt 0:00:45]} Ra8 {[%emt 0:01:59]} 34. Nc2 {[%emt 0:00:13]} Rf8 {[%emt 0:01:52]} 35. Ke2 {[%emt 0:01:37]} h5 {[%emt 0:02:32]} 36. g3 {[%emt 0:00:35]} Rc7 {[%emt 0:03:37]} 37. Ke3 {[%emt 0:00:35]} h4 {[%emt 0:02:01]} 38. g4 {[%emt 0:00:32]} Bc8 {[%emt 0:00:27]} 39. Rg1 {[%emt 0:00:53]} Kh6 {[%emt 0:01:50]} 40. g5+ {[%emt 0:00:00]} Kg7 {[%emt 0:00:00]} 41. Rxf6 {[%emt 0:03:00]} Rxf6 {[%emt 0:01:02]} 42. gxf6+ {[%emt 0:00:00]} Kxf6 {[%emt 0:00:00]} 43. Nb4 {[%emt 0:04:00]} Be6 {[%emt 0:06:00]} 44. d4 {[%emt 0:05:30]} exd4+ {[%emt 0:01:30]} 45. cxd4 {[%emt 0:00:30]} Rc4 {[%emt 0:00:30]} 46. Nd3 {[%emt 0:00:30]} Rc2 {[%emt 0:01:30]} 47. d5 {[%emt 0:02:30]} Bf7 {[%emt 0:01:30]} 48. Rf1+ {[%emt 0:01:30]} Kg7 {[%emt 0:00:30]} 49. Ne5 {[%emt 0:01:56]} Be8 {[%emt 0:01:30]} 50. d6 {[%emt 0:00:21]} Rxb2 {[%emt 0:00:30]} 51. d7 {[%emt 0:08:56]} Bxd7 {[%emt 0:00:00]} 52. Rf7+ {[%emt 0:00:22]} Kh6 {[%emt 0:01:00]} 53. Rxd7 {[%emt 0:00:31]} a3 {[%emt 0:00:30]} 54. Ra7 {[%emt 0:00:12]} a2 {[%emt 0:07:49]} 55. h3 {[%emt 0:03:18]} Kg5 {[%emt 0:07:34]} 56. Ra6 {[%emt 0:01:44]} b4 {[%emt 0:04:22]} 57. Ra5 {[%emt 0:01:16]} Kf6 {[%emt 0:01:56]} 58. Nd3 {[%emt 0:01:47]} Rh2 {[%emt 0:00:30]} 59. Ra6+ {[%emt 0:01:09]} Kg7 {[%emt 0:01:15]} 60. Nxb4 {[%emt 0:00:16]} Rxh3+ {[%emt 0:00:12]} 61. Kf4 {[%emt 0:00:16]} Rb3 {[%emt 0:00:40]} 62. Nd5 {[%emt 0:02:07]} Rb2 {[%emt 0:01:06]} 63. Kg4 {[%emt 0:01:09]} Re2 {[%emt 0:01:49]} 64. Ra7+ {[%emt 0:00:56]} Kh6 {[%emt 0:00:48]} 65. Nf6 {[%emt 0:01:33]} g5 {[%emt 0:00:26]} 66. Ra6 {[%emt 0:00:39]} Kg6 {[%emt 0:00:52]} 67. Nh5+ {[%emt 0:00:30]} Kf7 {[%emt 0:00:21]} 68. Kf5 {[%emt 0:00:27]} Rf2+ {[%emt 0:00:45]} 69. Kg4 {[%emt 0:00:31]} Re2 {[%emt 0:00:24]} 70. Kf3 {[%emt 0:00:17]} Rb2 {[%emt 0:00:18]} 71. Kg4 {[%emt 0:00:45]} Re2 {[%emt 0:00:18]} 72. Kf3 {[%emt 0:00:31]} Rb2 {[%emt 0:00:13]} 73. Kg4 {[%emt 0:00:30]} 1/2-1/2

[Event "27th CRO-chT 1B-Men 2018"]
[Site "Biograd"]
[Date "2018.09.18"]
[Round "4.11"]
[White "Mathe, Gaspar"]
[Black "Zelic, Mladen"]
[Result "0-1"]
[ECO "C63"]
[WhiteElo "2308"]
[BlackElo "2266"]
[Annotator "NA"]
[PlyCount "56"]
[EventDate "2018.09.15"]
[EventType "team-tourn"]
[EventCountry "CRO"]
[SourceTitle "playchess.com"]
[Source "ChessBase"]
[SourceQuality "1"]
[TimeControl "40/5400+30:1800+30"]

{[%evp 13,52,108,32767,97,32767,93,110,32,31,32767,-184,32767,32767,32767,32767,32767,-342,32767,-371,32767,-352,-765,32767,-1210,-1358,-1441,-1856,-1954,-773,32767,-1156,32767,32767,-870,-849,-804,-770,-827,-511,-452,-411]} 1. e4 {[%emt 0:00:30]} e5 {[%emt 0:00:30]} 2. Nf3 {[%emt 0:00:00]} Nc6 {[%emt 0:00:00]} 3. Bb5 {[%emt 0:00:00]} f5 {[%emt 0:00:00]} 4. Nc3 {[%emt 0:00:30]} fxe4 {[%emt 0:01:30]} 5. Nxe4 {[%emt 0:00:00]} d5 {[%emt 0:00:30]} 6. Nxe5 {[%emt 0:02:00]} dxe4 {[%emt 0:00:30]} 7. Nxc6 {[%emt 0:07:30]} Qg5 {[%emt 0:00:30]} 8. Qe2 {[%emt 0:01:30]} Nf6 {[%emt 0:01:30] [#]} 9. f4 $1 {[%emt 0:05:30]} Qxf4 {[%emt 0:01:30] [#]} 10. d4 {[%emt 0:02:30] LiveBook: 61 Games} (10. Nxa7+ $1 $16 Bd7 11. Bxd7+ Nxd7 12. d4) 10... Qd6 {[%emt 0:02:30]} 11. Nxa7+ {[%emt 0:02:30] [#]} c6 $1 {[%emt 0:28:30]} 12. Bf4 {[%emt 0:14:30] C63: Ruy Lopez: Schliemann/Jaenisch Defence} Qxf4 {[%emt 0:01:30]} 13. Nxc6 {[%emt 0:00:00]} Bd6 $146 {[%emt 0:16:30]} ({Predecessor:} 13... bxc6 14. Bxc6+ Kd8 15. Bxa8 Bg4 16. Qd2 Bb4 17. c3 e3 18. Qc2 Ke7 19. Bf3 Bxf3 20. gxf3 Qxd4 {1-0 (27) Turzo,A (2310)-Arnold,J (2250) Budapest 1995}) 14. g3 {[%emt 0:02:00]} Qg5 {[%emt 0:02:30]} 15. Ne5+ {[%emt 0:01:30]} Ke7 {[%emt 0:00:30]} 16. Nf3 {[%emt 0:05:30]} Qh5 {[%emt 0:01:30]} 17. Nh4 $2 {[%emt 0:14:30]} (17. Ne5) 17... Bg4 {[%emt 0:04:30]} 18. Qf1 {[%emt 0:02:30]} Rhf8 {[%emt 0:00:30]} 19. Be2 {[%emt 0:07:30]} Nd5 {[%emt 0:06:30]} 20. Qg2 {[%emt 0:02:30]} Bf3 {[%emt 0:00:30]} (20... Bb4+ $142 21. c3 {[#]} Nxc3 $1 {[%mdl 512]} 22. bxc3 Bxc3+ 23. Kd1 Bxe2+ 24. Qxe2 Qd5) 21. Qf2 {[%emt 0:09:33]} Bb4+ {[%emt 0:02:30]} 22. c3 {[%emt 0:01:30]} Nxc3 {[%emt 0:00:30]} 23. Bxf3 {[%emt 0:07:39]} Qb5 {[%emt 0:00:30]} 24. Qc2 {[%emt 0:07:42]} exf3 {[%emt 0:03:30]} 25. Kf2 {[%emt 0:02:11]} Qe2+ {[%emt 0:01:30]} 26. Qxe2+ {[%emt 0:00:08]} Nxe2 $19 {[%emt 0:01:30]} 27. Rad1 {[%emt 0:01:13]} Rxa2 {[%emt 0:01:30]} 28. Nxf3 {[%emt 0:00:33]} Rxb2 {[%emt 0:00:30]} 0-1

[Event "27th CRO-chT 1B-Men 2018"]
[Site "Biograd"]
[Date "2018.09.18"]
[Round "4.18"]
[White "Brulic, Denis"]
[Black "Matanovic, Luka"]
[Result "0-1"]
[ECO "A06"]
[WhiteElo "2232"]
[BlackElo "2252"]
[Annotator "ChessBase"]
[PlyCount "66"]
[EventDate "2018.09.15"]
[EventType "team-tourn"]
[EventCountry "CRO"]
[SourceTitle "playchess.com"]
[Source "ChessBase"]
[SourceQuality "1"]
[TimeControl "40/5400+30:1800+30"]

1. Nf3 {[%emt 0:03:30]} d5 {[%emt 0:00:30]} 2. e3 {[%emt 0:03:30]} Nf6 {[%emt 0:04:30]} 3. b3 {[%emt 0:01:30]} Bg4 {[%emt 0:02:30]} 4. Bb2 {[%emt 0:00:30]} Nbd7 {[%emt 0:01:30]} 5. h3 {[%emt 0:01:30]} Bh5 {[%emt 0:03:30]} 6. Be2 {[%emt 0:00:30]} e6 {[%emt 0:01:30]} 7. d3 {[%emt 0:01:30]} Bd6 {[%emt 0:02:30]} 8. g4 {[%emt 0:05:30]} Bg6 {[%emt 0:00:30]} 9. h4 {[%emt 0:08:30]} h6 {[%emt 0:03:30]} 10. h5 {[%emt 0:12:30]} Bh7 {[%emt 0:00:30]} 11. Nbd2 {[%emt 0:03:30]} Qe7 {[%emt 0:08:30]} 12. g5 {[%emt 0:08:30]} hxg5 {[%emt 0:03:30]} 13. Nxg5 {[%emt 0:00:30]} Ba3 {[%emt 0:01:30]} 14. Qc1 {[%emt 0:00:30]} Bxb2 {[%emt 0:00:30]} 15. Qxb2 {[%emt 0:00:00]} Bg6 {[%emt 0:00:30]} 16. O-O-O {[%emt 0:25:00]} Bxh5 {[%emt 0:02:30]} 17. Rh3 {[%emt 0:04:45]} O-O-O {[%emt 0:04:30]} 18. Rdh1 {[%emt 0:00:13]} g6 {[%emt 0:01:30]} 19. e4 {[%emt 0:06:23]} Rhf8 {[%emt 0:14:30]} 20. e5 {[%emt 0:08:21]} Ng4 {[%emt 0:06:30]} 21. Bxg4 {[%emt 0:02:11]} Bxg4 {[%emt 0:00:00]} 22. Nh7 {[%emt 0:00:58]} Bxh3 {[%emt 0:02:00]} 23. Nxf8 {[%emt 0:00:07]} Rxf8 {[%emt 0:00:30]} 24. Rxh3 {[%emt 0:00:03]} Qg5 {[%emt 0:00:30]} 25. Qa3 {[%emt 0:01:52]} Qg1+ {[%emt 0:04:30]} 26. Kb2 {[%emt 0:00:04]} Qxf2 {[%emt 0:00:30]} 27. Rf3 {[%emt 0:01:01]} Qxd2 {[%emt 0:01:30]} 28. Qe7 {[%emt 0:00:12]} Qe2 {[%emt 0:01:30]} 29. Rxf7 {[%emt 0:00:09]} Qxe5+ {[%emt 0:00:30]} 30. d4 {[%emt 0:00:11]} Qxd4+ {[%emt 0:00:30]} 31. Ka3 {[%emt 0:00:25]} Rd8 {[%emt 0:00:30]} 32. Qxe6 {[%emt 0:00:14]} Qc5+ {[%emt 0:00:30]} 33. Kb2 {[%emt 0:00:03]} Qd6 {[%emt 0:27:01]} 0-1

[Event "27th CRO-chT 1B-Men 2018"]
[Site "Biograd"]
[Date "2018.09.18"]
[Round "4.28"]
[White "Vlaic, Branko"]
[Black "Muha, Miljenko"]
[Result "1/2-1/2"]
[ECO "B13"]
[WhiteElo "2246"]
[BlackElo "2364"]
[Annotator "NA RC"]
[PlyCount "76"]
[EventDate "2018.09.15"]
[EventType "team-tourn"]
[EventCountry "CRO"]
[SourceTitle "playchess.com"]
[Source "ChessBase"]
[SourceQuality "1"]
[TimeControl "40/5400+30:1800+30"]

1. Nf3 {[%emt 0:00:30]} d5 {[%emt 0:00:30]} 2. d4 {[%emt 0:00:00]} Nf6 {[%emt 0:00:00]} 3. Bf4 {[%emt 0:00:00]} c5 {[%emt 0:00:00]} 4. e3 {[%emt 0:00:30]} Nc6 {[%emt 0:00:30]} 5. Nbd2 {[%emt 0:00:30]} cxd4 {[%emt 0:09:30]} 6. exd4 {[%emt 0:00:00]} Bg4 {[%emt 0:00:30]} 7. c3 {[%emt 0:00:00]} e6 {[%emt 0:08:30]} 8. Qb3 {[%emt 0:07:30]} Bd6 {[%emt 0:00:30] LiveBook: 5 Games} 9. Bxd6 {[%emt 0:06:30]} Qxd6 {[%emt 0:00:00]} 10. Bd3 {[%emt 0:02:30]} O-O {[%emt 0:01:00]} 11. O-O {[%emt 0:00:00]} Nh5 $146 {[%emt 0:23:30] B13: Caro-Kann: Exchange Variation and Panov-Botvinnik Attack} ({Predecessor:} 11... Bxf3 12. Nxf3 Rab8 {½-½ (12) Mikhailov,V (2268)-Konyshev,A (2370) Kemerovo 2010}) 12. Qc2 {[%emt 0:05:00]} h6 {[%emt 0:00:30]} 13. h3 {[%emt 0:04:30]} Bxf3 {[%emt 0:00:30]} 14. Nxf3 {[%emt 0:00:30]} Nf4 {[%emt 0:00:30]} 15. Qd2 {[%emt 0:00:00]} Nxd3 {[%emt 0:00:30]} 16. Qxd3 {[%emt 0:00:00]} Rab8 {[%emt 0:00:30]} 17. Rae1 {[%emt 0:00:30]} b5 {[%emt 0:04:30]} 18. a3 {[%emt 0:00:30]} a5 {[%emt 0:01:30]} 19. Ne5 {[%emt 0:00:00]} Nxe5 {[%emt 0:00:30]} 20. dxe5 {[%emt 0:00:00]} Qb6 {[%emt 0:01:30]} 21. Re3 {[%emt 0:01:30]} Rfc8 {[%emt 0:02:30]} 22. Kh2 {[%emt 0:03:30]} b4 {[%emt 0:01:30]} 23. axb4 {[%emt 0:03:30]} axb4 {[%emt 0:00:30]} 24. f4 {[%emt 0:00:00]} bxc3 {[%emt 0:02:30]} 25. bxc3 {[%emt 0:00:00]} Qb5 {[%emt 0:00:30]} 26. Qd1 {[%emt 0:00:30]} Qb3 {[%emt 0:02:30]} 27. Qf3 {[%emt 0:00:30]} Rc7 {[%emt 0:15:30]} 28. f5 {[%emt 0:03:30]} exf5 {[%emt 0:04:21]} 29. Qxf5 {[%emt 0:00:00]} d4 {[%emt 0:02:53]} 30. Ree1 {[%emt 0:09:00]} Qxc3 {[%emt 0:03:56]} 31. e6 {[%emt 0:00:30]} fxe6 {[%emt 0:00:36]} 32. Rxe6 {[%emt 0:00:30]} Rd8 {[%emt 0:06:24]} 33. Rxh6 {[%emt 0:04:30]} gxh6 {[%emt 0:02:27]} 34. Qe6+ {[%emt 0:00:30]} Kg7 {[%emt 0:01:31]} 35. Qf6+ {[%emt 0:02:30]} Kh7 {[%emt 0:00:00]} 36. Qf5+ {[%emt 0:00:30]} Kg7 {[%emt 0:01:23]} 37. Qf6+ {[%emt 0:00:30]} Kh7 {[%emt 0:00:08]} 38. Qf5+ {[%emt 0:00:30]} Kg8 $11 {[%emt 0:00:35]} 1/2-1/2

[Event "27th CRO-chT 1B-Men 2018"]
[Site "Biograd"]
[Date "2018.09.19"]
[Round "5.27"]
[White "Mufic, Goran"]
[Black "Ostovic, Matija"]
[Result "1/2-1/2"]
[ECO "C41"]
[WhiteElo "2254"]
[BlackElo "2390"]
[Annotator "NA"]
[PlyCount "102"]
[EventDate "2018.09.15"]
[EventType "team-tourn"]
[EventCountry "CRO"]
[SourceTitle "playchess.com"]
[Source "ChessBase"]
[SourceQuality "1"]
[TimeControl "40/5400+30:1800+30"]

{[%evp 8,100,57,32767,32767,32767,32767,32767,63,53,73,48,60,41,41,24,45,10,39,4,27,24,32,20,32,6,8,8,38,32767,32767,0,0,0,0,-43,-33,-58,-54,-217,-77,32767,32767,32767,32767,32767,32767,32767,32767,32767,32767,32767,32767,32767,32767,32767,32767,-89,-82,32767,32767,32767,32767,32767,32767,32767,32767,32767,32767,-95,-119,-119,-84,-93,-83,-94,-77,32767,32767,32767,32767,32767,32767,32767,32767,32767,-68,-73,0,32767,0,0,0,0,0]} 1. d4 {[%emt 0:00:30]} d6 {[%emt 0:00:30]} 2. Nf3 {[%emt 0:00:30]} Nd7 {[%emt 0:00:30]} 3. e4 {[%emt 0:03:30]} e5 {[%emt 0:00:30]} 4. dxe5 {[%emt 0:02:30]} Nxe5 {[%emt 0:03:30] LiveBook: 29 Games} 5. Nxe5 dxe5 6. Qxd8+ Kxd8 7. Bc4 Ke8 {[%emt 0:07:30]} 8. Be3 {[%emt 0:16:00] C41: Philidor Defence} c6 $146 {[%emt 0:00:30]} ({Predecessor:} 8... Nf6) 9. a4 {[%emt 0:00:30]} Nf6 {[%emt 0:00:30]} 10. f3 {[%emt 0:00:30]} Nd7 {[%emt 0:01:30]} 11. Nd2 {[%emt 0:01:30]} Bc5 {[%emt 0:06:30]} 12. Ke2 {[%emt 0:01:30]} Ke7 {[%emt 0:01:30]} 13. c3 {[%emt 0:00:30]} g6 {[%emt 0:01:30]} 14. h4 {[%emt 0:08:30]} Bxe3 {[%emt 0:01:30]} 15. Kxe3 {[%emt 0:00:30]} f5 {[%emt 0:01:30]} 16. exf5 {[%emt 0:11:00]} gxf5 {[%emt 0:00:30]} 17. g4 {[%emt 0:00:30]} Nb6 {[%emt 0:19:30]} 18. gxf5 {[%emt 0:02:30]} Bxf5 {[%emt 0:01:30]} 19. a5 {[%emt 0:08:30]} Nd5+ {[%emt 0:03:30]} 20. Kf2 {[%emt 0:00:30]} Nf4 {[%emt 0:02:30]} 21. Nf1 {[%emt 0:10:30]} Rad8 {[%emt 0:15:30]} 22. Rh2 {[%emt 0:09:30]} Be6 {[%emt 0:02:30]} 23. Ne3 {[%emt 0:03:30]} (23. Bxe6 $17 {keeps fighting.} Kxe6 24. Ng3) 23... Rhg8 {[%emt 0:05:30]} (23... Rd2+ $19 {and Black stays clearly on top.} 24. Kg1 Nh3+ 25. Kh1 Nf2+ 26. Kg1 Rg8+ 27. Kf1 Nd1 28. Nf5+ Bxf5 29. Bxg8 Rxh2 30. Rxd1 Rxb2) 24. Bxe6 {[%emt 0:00:36]} Kxe6 {[%emt 0:00:30]} 25. Nc4 {[%emt 0:00:38]} b5 {[%emt 0:00:30]} 26. axb6 {[%emt 0:00:02]} axb6 {[%emt 0:00:30]} 27. Kf1 {[%emt 0:00:30]} Rd3 {[%emt 0:00:30]} 28. Nd2 {[%emt 0:00:30]} Rgd8 {[%emt 0:01:30]} 29. Ke1 {[%emt 0:01:46]} Rg8 {[%emt 0:05:11]} 30. Kf1 {[%emt 0:00:27]} Rgd8 {[%emt 0:04:54]} 31. Ke1 {[%emt 0:00:03]} Re3+ {[%emt 0:00:55]} 32. Kd1 {[%emt 0:00:37]} Nd3 {[%emt 0:00:30]} 33. Kc2 {[%emt 0:00:54]} Ne1+ {[%emt 0:00:30]} 34. Kb3 {[%emt 0:00:36]} Nxf3 {[%emt 0:00:32]} 35. Nxf3 {[%emt 0:00:01]} Rxf3 {[%emt 0:00:30]} 36. Ra6 {[%emt 0:00:30]} Rb8 {[%emt 0:00:30]} 37. Ra7 {[%emt 0:00:30]} Rf7 {[%emt 0:00:27]} 38. Ra4 {[%emt 0:00:24]} b5 {[%emt 0:01:59]} 39. Ra6 {[%emt 0:00:28]} Kd5 {[%emt 0:00:28]} 40. Rd2+ {[%emt 0:00:00]} Kc5 {[%emt 0:00:00]} 41. Kc2 {[%emt 0:03:21]} b4 {[%emt 0:02:19]} 42. Ra5+ {[%emt 0:08:30]} Rb5 {[%emt 0:00:30]} 43. Ra8 {[%emt 0:02:30]} bxc3 {[%emt 0:02:30]} 44. bxc3 {[%emt 0:01:30]} Re7 {[%emt 0:04:30]} 45. h5 {[%emt 0:02:30]} e4 {[%emt 0:01:30]} 46. h6 {[%emt 0:00:30]} Reb7 {[%emt 0:09:07]} 47. Ra2 {[%emt 0:01:30]} Kb6 {[%emt 0:01:06]} ({Better is} 47... e3 $17 48. Re2 Re7) 48. c4 {[%emt 0:04:30]} Rb4 {[%emt 0:01:37]} 49. Kc3 {[%emt 0:00:30]} Kc7 {[%emt 0:00:15]} 50. Kd4 {[%emt 0:00:30]} Kd6 $11 {[%emt 2:12:53]} 51. Ra5 {[%emt 2:04:30]} Kc7 {[%emt 0:05:09]} 1/2-1/2